Workbook

Sheet Quarterly Cash Flow Projection
B3: Quarterly Cash Flow Projection
B4: The ABC Corporation
B5: First Quarter, 2010
D7: JANUARY | H7: =R198 -> FEBRUARY | L7: =S198 -> MARCH
B8: Cash Received | D8: Estimate | E8: Actual | F8: Variance | H8: Estimate | I8: Actual | J8: Variance | L8: Estimate | M8: Actual | N8: Variance
B9: Beginning Cash Balance | D9: $52,552 | E9: $54,530 | F9: =IF(OR(D9>0,E9),D9-E9,"") -> ($1,978) | H9: =D35 -> $36,247 | I9: =E35 -> $42,762 | J9: =IF(AND(ISNUMBER(H9),ISNUMBER(I9)),H9-I9,"") -> ($6,515) | L9: =H35 -> $33,469 | M9: =I35 -> $38,955 | N9: =IF(AND(ISNUMBER(L9),ISNUMBER(M9)),L9-M9,"") -> ($5,486)
B10: Cash Sales | D10: 23,821 | E10: 25,485 | F10: =IF(OR(D10>0,E10),D10-E10,"") -> (1,664) | H10: 23,819 | I10: 26,468 | J10: =IF(OR(H10>0,I10),H10-I10,"") -> (2,649) | L10: 25,443 | M10: 26,780 | N10: =IF(OR(L10>0,M10),L10-M10,"") -> (1,337)
B11: Collections | D11: 59,014 | E11: 61,001 | F11: =IF(OR(D11>0,E11),D11-E11,"") -> (1,987) | H11: 62,394 | I11: 63,666 | J11: =IF(OR(H11>0,I11),H11-I11,"") -> (1,272) | L11: 73,702 | M11: 69,487 | N11: =IF(OR(L11>0,M11),L11-M11,"") -> 4,215
B12: Loans | D12: 15,121 | E12: 18,452 | F12: =IF(OR(D12>0,E12),D12-E12,"") -> (3,331) | H12: 12,329 | I12: 19,109 | J12: =IF(OR(H12>0,I12),H12-I12,"") -> (6,780) | L12: 14,513 | M12: 19,452 | N12: =IF(OR(L12>0,M12),L12-M12,"") -> (4,939)
C13: Total Cash Available | D13: =IF(SUM(D9:D12),SUM(D9:D12),"") -> $150,508 | E13: =IF(SUM(E9:E12),SUM(E9:E12),"") -> $159,468 | F13: =IF(SUM(F9:F12),SUM(F9:F12),"") -> ($8,960) | H13: =IF(SUM(H9:H12),SUM(H9:H12),"") -> $134,789 | I13: =IF(SUM(I9:I12),SUM(I9:I12),"") -> $152,005 | J13: =IF(SUM(J9:J12),SUM(J9:J12),"") -> ($17,216) | L13: =IF(SUM(L9:L12),SUM(L9:L12),"") -> $147,127 | M13: =IF(SUM(M9:M12),SUM(M9:M12),"") -> $154,674 | N13: =IF(SUM(N9:N12),SUM(N9:N12),"") -> ($7,547)
B14: Cash Disbursed
B15: Salaries and Wages | D15: $14,752 | E15: $15,855 | F15: =IF(OR(D15>0,E15),D15-E15,"") -> ($1,103) | H15: $12,890 | I15: $13,659 | J15: =IF(OR(H15>0,I15),H15-I15,"") -> ($769) | L15: $15,042 | M15: $14,150 | N15: =IF(OR(L15>0,M15),L15-M15,"") -> $892
B16: Lease/Mortgage | D16: 1,659 | E16: 1,659 | F16: 0 | H16: 1,422 | I16: 1,776 | J16: (354) | L16: 1,589 | M16: 1,778 | N16: (189)
B17: Insurance | D17: 1,041 | E17: 1,085 | F17: (44) | H17: 956 | I17: 1,175 | J17: (219) | L17: 980 | M17: 1,328 | N17: (348)
B18: Office Supplies | D18: 5,404 | E18: 3,505 | F18: 1,899 | H18: 4,646 | I18: 3,911 | J18: 735 | L18: 5,395 | M18: 4,676 | N18: 719
B19: Utilities | D19: 7,316 | E19: 7,105 | F19: 211 | H19: 8,212 | I19: 7,190 | J19: 1,022 | L19: 6,837 | M19: 7,535 | N19: (698)
B20: Repairs and Maintenance | D20: 4,378 | E20: 4,155 | F20: 223 | H20: 4,161 | I20: 3,694 | J20: 467 | L20: 4,766 | M20: 4,330 | N20: 436
B21: Operating Supplies | D21: 2,805 | E21: 3,950 | F21: (1,145) | H21: 3,114 | I21: 4,538 | J21: (1,424) | L21: 3,247 | M21: 5,170 | N21: (1,923)
B22: Professional Fees | D22: 3,437 | E22: 1,575 | F22: 1,862 | H22: 3,097 | I22: 1,630 | J22: 1,467 | L22: 3,245 | M22: 1,514 | N22: 1,731
B23: Commissions | D23: 13,716 | E23: 15,850 | F23: (2,134) | H23: 12,293 | I23: 17,303 | J23: (5,010) | L23: 11,060 | M23: 19,577 | N23: (8,517)
B24: Travel and Entertainment | D24: 3,734 | E24: 4,580 | F24: (846) | H24: 4,061 | I24: 4,509 | J24: (448) | L24: 4,546 | M24: 4,923 | N24: (377)
B25: Purchases | D25: 4,140 | E25: 4,500 | F25: (360) | H25: 4,830 | I25: 4,783 | J25: 47 | L25: 4,161 | M25: 5,129 | N25: (968)
B26: Advertising | D26: 1,957 | E26: 2,850 | F26: (893) | H26: 1,841 | I26: 3,205 | J26: (1,364) | L26: 1,700 | M26: 3,499 | N26: (1,799)
B27: Transportation | D27: 14,776 | E27: 13,505 | F27: 1,271 | H27: 12,681 | I27: 12,838 | J27: (157) | L27: 10,522 | M27: 14,371 | N27: (3,849)
B28: Other | D28: 12,352 | E28: 11,318 | F28: 1,034 | H28: 12,794 | I28: 12,410 | J28: 384 | L28: 10,630 | M28: 13,920 | N28: (3,290)
C29: Total Disbursements | D29: =IF(SUM(D15:D28),SUM(D15:D28),"") -> $91,467 | E29: =IF(SUM(E15:E28),SUM(E15:E28),"") -> $91,492 | F29: =IF(SUM(F15:F28),SUM(F15:F28),"") -> ($25) | H29: =IF(SUM(H15:H28),SUM(H15:H28),"") -> $86,998 | I29: =IF(SUM(I15:I28),SUM(I15:I28),"") -> $92,621 | J29: =IF(SUM(J15:J28),SUM(J15:J28),"") -> ($5,623) | L29: =IF(SUM(L15:L28),SUM(L15:L28),"") -> $83,720 | M29: =IF(SUM(M15:M28),SUM(M15:M28),"") -> $101,900 | N29: =IF(SUM(N15:N28),SUM(N15:N28),"") -> ($18,180)
B30: Cash Position
B31: Loan Payment with Interest | D31: $8,214 | E31: $8,214 | F31: =IF(OR(D31>0,E31),D31-E31,"") -> $0 | H31: $7,318 | I31: $8,665 | J31: =IF(OR(H31>0,I31),H31-I31,"") -> ($1,347) | L31: $6,353 | M31: $8,278 | N31: =IF(OR(L31>0,M31),L31-M31,"") -> ($1,925)
B32: Capital Purchases | D32: 2,080 | E32: 1,500 | F32: =IF(OR(D32>0,E32),D32-E32,"") -> 580 | H32: 2,004 | I32: 1,764 | J32: =IF(OR(H32>0,I32),H32-I32,"") -> 240 | L32: 2,348 | M32: 1,493 | N32: =IF(OR(L32>0,M32),L32-M32,"") -> 855
B33: Owner's Withdrawal | D33: 12,500 | E33: 15,500 | F33: =IF(OR(D33>0,E33),D33-E33,"") -> (3,000) | H33: 5,000 | I33: 10,000 | J33: =IF(OR(H33>0,I33),H33-I33,"") -> (5,000) | L33: 15,000 | M33: 10,000 | N33: =IF(OR(L33>0,M33),L33-M33,"") -> 5,000
C34: Total Cash Paid Out | D34: =IF(SUM(D29:D33),SUM(D29:D33),"") -> $114,261 | E34: =IF(SUM(E29:E33),SUM(E29:E33),"") -> $116,706 | F34: =IF(SUM(F29:F33),SUM(F29:F33),"") -> ($2,445) | H34: =IF(SUM(H29:H33),SUM(H29:H33),"") -> $101,320 | I34: =IF(SUM(I29:I33),SUM(I29:I33),"") -> $113,050 | J34: =IF(SUM(J29:J33),SUM(J29:J33),"") -> ($11,730) | L34: =IF(SUM(L29:L33),SUM(L29:L33),"") -> $107,421 | M34: =IF(SUM(M29:M33),SUM(M29:M33),"") -> $121,671 | N34: =IF(SUM(N29:N33),SUM(N29:N33),"") -> ($14,250)
C35: End Of Month | D35: =IF(AND(ISNUMBER(D13),ISNUMBER(D34)),D13-D34,"") -> $36,247 | E35: =IF(AND(ISNUMBER(E13),ISNUMBER(E34)),E13-E34,"") -> $42,762 | F35: =IF(AND(ISNUMBER(F13),ISNUMBER(F34)),F13-F34,"") -> ($6,515) | H35: =IF(AND(ISNUMBER(H13),ISNUMBER(H34)),H13-H34,"") -> $33,469 | I35: =IF(AND(ISNUMBER(I13),ISNUMBER(I34)),I13-I34,"") -> $38,955 | J35: =IF(AND(ISNUMBER(J13),ISNUMBER(J34)),J13-J34,"") -> ($5,486) | L35: =IF(AND(ISNUMBER(L13),ISNUMBER(L34)),L13-L34,"") -> $39,706 | M35: =IF(AND(ISNUMBER(M13),ISNUMBER(M34)),M13-M34,"") -> $33,003 | N35: =IF(AND(ISNUMBER(N13),ISNUMBER(N34)),N13-N34,"") -> $6,703
P196: DO NOT ERASE OR DELETE ROWS OR
P197: COLUMNS FROM THIS SECTION
P198: =IF(CELL("type",D7)="l",UPPER(LEFT(D7,3)),D7) -> JAN | Q198: =INDEX($Q$200:$Q$213,MATCH($P$198,$P$200:$P$213,0),1) -> JANUARY | R198: =INDEX($Q$200:$Q$213,MATCH($P$198,$P$200:$P$213,0)+1,1) -> FEBRUARY | S198: =INDEX($Q$200:$Q$213,MATCH($P$198,$P$200:$P$213,0)+2,1) -> MARCH
P200: =LEFT(Q200,3) -> JAN | Q200: JANUARY
P201: FEB | Q201: FEBRUARY
P202: MAR | Q202: MARCH
P203: APR | Q203: APRIL
P204: MAY | Q204: MAY
P205: JUN | Q205: JUNE
P206: JUL | Q206: JULY
P207: AUG | Q207: AUGUST
P208: SEP | Q208: SEPTEMBER
P209: OCT | Q209: OCTOBER
P210: NOV | Q210: NOVEMBER
P211: DEC | Q211: DECEMBER
P212: =LEFT(Q212,3) -> JAN | Q212: JANUARY
P213: =LEFT(Q213,3) -> FEB | Q213: FEBRUARY
